Cogmind - Beta 16.1 @@@ ROGUE MODE // 2026.03.30 @ 19:16:35 Player: konomiyu Result: Destroyed by X9-L1L(R) with Subdweller Laser Performance ------------- Evolutions (0) 0 Regions Visited (2) 400 Robots Destroyed (25) 125 Value Destroyed (666) 666 Prototype IDs (0) 0 Alien Tech Used (0) 0 Bonus (0) 0 TOTAL SCORE: 1191 Bonus ------- None Cogmind --------- Core Integrity 0/250 Matter 44/300 Energy 198/200 System Corruption 6% Temperature Cool (6) Movement Walking (120) Location -10/Subcaves Parts ------- > --- POWER (1) -------- Subdweller Power Source > --- PROPULSION (2) --- Aluminum Leg Aluminum Leg > --- UTILITY (2) ------ Small Storage Unit Subdweller Optics > --- WEAPON (2) ------- Battle Rifle Barrage Gun > --- INVENTORY (8) ---- Subdweller Power Source Hacking Suite Medium Laser Subdweller Shrapnel Launcher Mining Claw Peak State ------------ > --- POWER ------------ Subdweller Power Source > --- PROPULSION ------- Aluminum Leg Aluminum Leg > --- UTILITY ---------- Small Storage Unit Subdweller Optics > --- WEAPON ----------- Battle Rifle Barrage Gun > --- INVENTORY -------- Subdweller Power Source Hacking Suite Medium Laser Subdweller Shrapnel Launcher Mining Claw Scrap Shield Fragment [Rating: 13] Favorites ----------- Power Ion Engine Engine Ion Engine Propulsion Light Treads Treads Light Treads Leg Aluminum Leg Wheel Subdweller Monowheel Utility Small Storage Unit Device Seismic Detector Storage Small Storage Unit Weapon Medium Laser Energy Gun Medium Laser Ballistic Gun Barrage Gun Launcher Grenade Launcher Slashing Weapon Mining Claw Build | -11 -10 -10 ------- Run | Yrd Mat Sub Slots Evolved . | . . . Power . | . . . Propulsion . | . . . Utility . | . . . Weapon . | . . . Parts Attached 22 | 8 2 12 Power 3 | 1 . 2 Engine 3 | 1 . 2 Core . | . . . Reactor . | . . . Propulsion 6 | 2 . 4 Treads 2 | 2 . . Leg 3 | . . 3 Wheel 1 | . . 1 Hover . | . . . Flight . | . . . Utility 3 | 2 . 1 Device 2 | 1 . 1 Storage 1 | 1 . . Processor . | . . . Hackware . | . . . Protection . | . . . Artifact . | . . . Weapon 10 | 3 2 5 Energy Gun 3 | 2 . 1 Energy Cannon . | . . . Ballistic Gun 4 | 1 . 3 Ballistic Cannon . | . . . Launcher 2 | . 1 1 Special Weapon . | . . . Impact Weapon . | . . . Slashing Weapon 1 | . 1 . Piercing Weapon . | . . . Special Melee Weapon . | . . . Unidentified Prototypes . | . . . Parts Lost 11 | . . 11 Power 2 | . . 2 Propulsion 4 | . . 4 Utility 1 | . . 1 Weapon 4 | . . 4 Highest Loss Streak 3 | . . 3 To Critical Strikes . | . . . Average Backups 5 | 2 4 6 Power 1 | . 1 1 Propulsion 1 | 1 2 . Utility 1 | . . 1 Weapon 2 | . 1 2 Tool/Special . | . . . Unused Backups 2 | . . 2 Power 1 | . . 1 Propulsion . | . . . Utility 1 | . . 1 Weapon . | . . . Tool/Special . | . . . Average Slot Usage (%) 96 | . 100 94 Engine 13 | . 14 12 Treads 11 | . 28 3 Leg 10 | . . 15 Wheel 3 | . . 4 Device 13 | . 14 13 Storage 14 | . 14 14 Energy Gun 10 | . 15 8 Ballistic Gun 11 | . . 16 Launcher 5 | . 12 1 Peak Build Rating 13 | 7 7 13 Average Rating 8 | 4 7 9 On Entrance 4 | . 7 7 Avg Prop Armor Cover (%) 9 | . . 9 Naked Turns . | . . . Heaviest Build 22 | 14 16 22 Greatest Support 40 | 40 40 40 Greatest Overweight (x) 2 | 2 . 2 Average Overweight (x) . | . . . Largest Inventory Capacity 8 | 8 8 8 Average Capacity 7 | 6 8 8 Most Carried 8 | 5 6 8 Average Carried 5 | 2 4 6 Final Capacity 8 | 8 8 8 Final Carried 6 | 4 6 5 Class Distribution -------------------- 100% | Mutant Dominant Class ---------------- Mutant | -10/Materials Mutant | -10/Subcaves Resources | -11 -10 -10 ----------- Run | Yrd Mat Sub Matter Collected 724 | 93 330 301 Remotely . | . . . Salvage Created 499 | 29 170 300 Parts 39 | 5 18 16 Haulers Intercepted . | . . . Recyclers Shooed . | . . . Parts Field Recycled . | . . . Retrieved Matter . | . . . Parts Self-Destructed 13 | . . 13 Prevented . | . . . Parts Restored . | . . . Kills | -11 -10 -10 ------- Run | Yrd Mat Sub Combat Hostiles Destroyed 19 | . 7 12 Guns 7 | . . 7 AOE 12 | . 7 5 Classes Destroyed 8 | 1 6 1 Builder 1 | . 1 . Tunneler 1 | 1 . . Recycler 1 | . 1 . Operator 1 | . 1 . Watcher 2 | . 2 . Swarmer 6 | . 3 3 Grunt 6 | . 4 2 Subdweller 7 | . . 7 Best Kill Streak 5 | 1 5 5 Combat Bots Only 5 | . 3 5 Max Kills in Single Turn 2 | 1 2 1 Gunslinging . | . . . Exploded 2 | . 2 1 Melee . | . . . Uniques/NPCs Destroyed . | . . . Combat | -11 -10 -10 -------- Run | Yrd Mat Sub Hostile Shots Fired 88 | . 29 59 Missed 28 | . 7 21 Hits 60 | . 22 38 Projectile 60 | . 22 38 AOE 2 | . . 2 Critical Strikes 1 | . . 1 Damage Taken 1475 | . 258 1217 Core 262 | . 72 190 Absorbed by Shields . | . . . Core Remaining (%) 100 | 100 . . Volleys Fired 73 | 1 34 38 Largest 2 | 2 2 2 Hottest 110 | 90 90 110 Shots Fired 105 | 2 40 63 Gun 69 | 2 13 54 Cannon . | . . . Launcher 36 | . 27 9 Special . | . . . Kinetic 35 | . . 35 Thermal 42 | 2 13 27 Explosive 28 | . 27 1 Electromagnetic . | . . . Robot Hit Streak 36 | 1 7 36 Robot Miss Streak 3 | . 3 1 Penetration Max . | . . . Secondary Targets 1 | . . 1 Max Gunslinging Chain 1 | . . 1 Shots Hit Robots 64 | 1 15 48 Core Hits 41 | 1 20 20 Critical Kills . | . . . Critical Parts Destroyed . | . . . Critical Strikes 5 | . 2 3 Burn 4 | . 2 2 Destroy 1 | . . 1 Melee Attacks 12 | . 1 11 Impact . | . . . Slashing 12 | . 1 11 Piercing . | . . . Sneak Attacks . | . . . Combat Hostiles . | . . . Follow-up Attacks . | . . . Damage Inflicted 2208 | 11 1090 1107 Guns 733 | 11 74 648 Cannons . | . . . Explosions 1475 | . 1016 459 Melee . | . . . Ramming . | . . . Kinetic 609 | . . 609 Thermal 616 | 11 221 384 Explosive 983 | . 869 114 Electromagnetic . | . . . Impact . | . . . Slashing . | . . . Piercing . | . . . Highest Corruption 6 | . . 6 Average Corruption 6 | . . 6 Corruption Purged . | . . . Corruption Blocked . | . . . Effects 7 | . . 7 Message Errors 4 | . . 4 Matter Fused 1 | . . 1 Heat Flow Errors 1 | . . 1 Data Loss (major) 1 | . . 1 Overload Shots . | . . . Overflow Damage 55 | . 53 2 Projectiles . | . . . Explosions 55 | . 53 2 Melee . | . . . Knockbacks . | . . . Impact . | . . . Kinetic . | . . . Secondary . | . . . Self-Inflicted Damage 103 | . 50 53 Shots 4 | . 2 2 Rammed . | . . . Targets Rammed . | . . . Kicked . | . . . Crushed . | . . . Highest Temperature 232 | 30 94 232 Average Temperature 40 | 18 29 123 Received Heat Transfer 222 | . 63 159 Siege Activations . | . . . Martial Activations . | . . . Shielding Activations . | . . . Robots Disrupted . | . . . Combat Hostiles . | . . . Robots Corrupted . | . . . Combat Hostiles . | . . . Parts Fried . | . . . Impact Corruptions . | . . . Robots Melted . | . . . Combat Hostiles . | . . . Parts Melted 2 | . . 2 Heat Transferred 1411 | 25 470 916 Parts Sabotaged . | . . . Parts Stolen . | . . . Parts Stripped . | . . . Power Chain Reactions . | . . . Alert | -11 -10 -10 ------- Run | Yrd Mat Sub Maximum Alert Level 1 | . 1 . Low Security (%) 66 | 100 60 . Level 1 33 | . 39 . Level 2 . | . . . Level 3 . | . . . Level 4 . | . . . Level 5 . | . . . High Security . | . . . Max Security . | . . . Peak Influence 243 | 5 243 . Initial . | . . . Average 113 | 1 132 . Influence Increases 496 | 5 371 120 Destroy 0b10 Robot/C 240 | . 140 100 Destroy 0b10 Robot/NC 30 | 5 25 . Destroy Leader 64 | . 44 20 Successful Hack 8 | . 8 . Disable Machine 45 | . 45 . Destroy Structure 109 | . 109 . Influence Decreases 496 | 5 170 321 Entered New Map 97 | . . 97 Time Decay 329 | 5 170 154 Lost Part 70 | . . 70 Squads Dispatched 3 | . 3 . Investigation 1 | . 1 . Extermination . | . . . Reinforcement 2 | . 2 . Assault . | . . . Garrison . | . . . Intercept . | . . . Searches Triggered . | . . . Construction Impeded . | . . . Haulers Reinforced . | . . . Active Scanning Responses . | . . . Cargo Convoy Interrupts . | . . . Stealth | -11 -10 -10 --------- Run | Yrd Mat Sub Distress Signals 1 | . 1 . Communications Jammed . | . . . Distress Signals . | . . . Times Spotted 27 | . 13 14 Peak Tracking Total 4 | . 4 2 Tactical Retreats . | . . . Traps | -11 -10 -10 ------- Run | Yrd Mat Sub Traps Triggered . | . . . Indirectly . | . . . Trap Hack Attempts . | . . . Triggered . | . . . Disarmed . | . . . Reprogrammed . | . . . Reused . | . . . Traps Extracted . | . . . Installed . | . . . Triggered . | . . . Machines | -11 -10 -10 ---------- Run | Yrd Mat Sub Machines Disabled 4 | . 4 . Max in Single Turn 3 | . 3 . Machines Repaired . | . . . Machines Dismantled . | . . . Machines Sabotaged . | . . . Overloaded Fab Kills . | . . . Hacking | -11 -10 -10 --------- Run | Yrd Mat Sub Machines Accessed 5 | . 3 2 Terminals 2 | . 2 . Fabricators . | . . . Repair Stations . | . . . Recycling Units 1 | . 1 . Scanalyzers . | . . . Garrison Access . | . . . Total Hacks 10 | . 7 3 Successful 6 | . 3 3 Failed 4 | . 4 . Catastrophic . | . . . Database Lockouts . | . . . Manual 1 | . 1 . Terminals 4 | . 4 . Fabricators . | . . . Repair Stations . | . . . Recycling Units 3 | . 3 . Scanalyzers . | . . . Garrison Access . | . . . Terminal Hacks 4 | . 1 3 Record 2 | . 1 1 Open Door 1 | . . 1 Release Object 1 | . . 1 Fabricator Hacks . | . . . Repair Station Hacks . | . . . Recycling Unit Hacks 1 | . 1 . Retrieve Matter 1 | . 1 . Scanalyzer . | . . . Garrison Access Hacks . | . . . Unauthorized Hacks 1 | . 1 . Terminals 1 | . 1 . Operators 1 | . 1 . Fabricators . | . . . Repair Stations . | . . . Recycling Units . | . . . Scanalyzers . | . . . Garrison Access . | . . . Data Cores Recovered 1 | . 1 . Used . | . . . Hacking Detections 2 | . 2 . Full Trace Events 1 | . 1 . Feedback Events . | . . . Feedback Blocked . | . . . Robot Schematics Acquired . | . . . Robots Built . | . . . Authchips . | . . . Time . | . . . Total Robot Build Rating . | . . . Part Schematics Acquired . | . . . Parts Built . | . . . Authchips . | . . . Time . | . . . Total Part Build Rating . | . . . Part Studies Acquired . | . . . Parts Repaired . | . . . Time . | . . . Parts Recycled . | . . . Recycled Matter . | . . . Retrieved Matter . | . . . Retrieved Components . | . . . Parts Scanalyzed . | . . . Part Schematics Acquired . | . . . Parts Damaged . | . . . Bothacking | -11 -10 -10 ------------ Run | Yrd Mat Sub Used RIF Installer . | . . . Robots Hacked . | . . . Non-combat . | . . . Combat . | . . . Robot Hacks Applied . | . . . Relay Couplers Released . | . . . Fabnet Peak Effective % . | . . . Robots Rewired . | . . . Allies Hacked . | . . . Hacks Repelled . | . . . Allies | -11 -10 -10 -------- Run | Yrd Mat Sub Total Allies . | . . . Largest Group . | . . . Highest-Rated Group . | . . . Highest-Rated Ally . | . . . Total Orders . | . . . Ally Attacks . | . . . Total Damage . | . . . Kills . | . . . Allies Corrupted . | . . . Allies Melted . | . . . Intel | -11 -10 -10 ------- Run | Yrd Mat Sub Active Infowar (turns) 1379 | 13 462 904 Optics 200 | . . 200 Seismic 1179 | 13 462 704 Robot Analysis Total . | . . . Derelict Logs Recovered . | . . . Drone Launches . | . . . Drone Recoveries . | . . . Exploration | -11 -10 -10 ------------- Run | Yrd Mat Sub Turns Passed 1472 | 80 462 930 Spaces Moved 777 | 40 231 506 Core 10 | 10 . . Treads 304 | 30 231 43 Legs 273 | . . 273 Wheels 190 | . . 190 Hover . | . . . Flight . | . . . Fastest Speed 50 | 50 160 110 Average Speed 142 | 151 160 134 Slowest Speed 260 | 160 160 260 Overloaded Moves . | . . . Propulsion Burnouts . | . . . Robots Hopped . | . . . Potential Cave-ins . | . . . Cave-ins Triggered 1 | . . 1 Exploration Rate (%) 25 | 3 51 23 Regions Visited 2 Branch Regions 1 Pre-discovered Areas . | . . . Known Exits Taken . | . . . Unknown Exits Taken 2 | 1 1 . Scrap Searched . | . . . Spaces Dug 9 | . 9 . Terrain Destroyed 173 | . 116 57 Melee . | . . . Projectile . | . . . AOE 173 | . 116 57 Terrain Rammed . | . . . Walls Destroyed . | . . . Machines Disabled . | . . . Actions | -11 -10 -10 --------- Run | Yrd Mat Sub Total 1007 | 54 280 673 Wait 94 | . 10 84 Move 775 | 39 230 506 Hop . | . . . Pick Up 17 | 5 2 10 Fast Attach 9 | 7 . 2 Attach 9 | . . 9 Detach . | . . . Swap 12 | 1 3 8 Drop 5 | 1 . 4 Fire 73 | 1 34 38 Melee 12 | . 1 11 Ram . | . . . Kick . | . . . Crush . | . . . Escape Stasis . | . . . Rewire . | . . . Trap . | . . . Miscellaneous 1 | . . 1 Route ------- -11/Scrapyard -10/Materials (discovered 3 exits: [*Mat] / [*Min] / *Sub) -10/Subcaves History --------- Turn | Location | Event 19 | -11/Scrapyard | Discovered new exit (range 14) 81 | -11/Scrapyard | Entered Materials 223 | -10/Materials | Discovered new exit (range 15) 308 | -10/Materials | Build established: Mutant 368 | -10/Materials | Discovered new exit (range 15) 412 | -10/Materials | Discovered new exit (range 10) 543 | -10/Materials | Entered Subcaves 557 | -10/Subcaves | Ambushed by Subdwellers from Twisted Machinery 591 | -10/Subcaves | Core integrity fell below 50% 1067 | -10/Subcaves | Lost 3 parts (2n1w) 1087 | -10/Subcaves | Shifting Twisted Machinery released Barrage Gun 1088 | -10/Subcaves | Shifting Twisted Machinery released Barrage Gun 1247 | -10/Subcaves | Crushed by falling debris 1247 | -10/Subcaves | Core integrity fell below 20% 1278 | -10/Subcaves | Lost 3 parts (1p1u1w) 1323 | -10/Subcaves | Released subatomizers from SUBCON Basin 1473 | -10/Subcaves | A Subdweller sparked back to life 1473 | -10/Subcaves | A Subdweller sparked back to life 1473 | -10/Subcaves | A Subdweller sparked back to life 1473 | -10/Subcaves | Destroyed by X9-L1L(R) with Subdweller Laser Last Messages --------------- 01248_ Aluminum Leg fries itself beyond repair. 01249_ Sml. Laser fries itself beyond repair. 01249_ Acquired Aluminum Leg. 01251_ Ion Engine fries itself beyond repair. 01278_ VIUTXNMFHFR9%7:2BZW3RZGSD=I/ZMZJSUCM OEO 01288_ Acquired Scrap Shield Fragment. 01300_ System corrupted: Substantial component data lost. 01318_ Dropped Scrap Shield Fragment. 01323_ Released subatomizers from SUBCON Basin. 01336_ 7YV5AXRGUYFHGZT%KY=GIJ 01358_ System corrupted: Heat flow error (+268). 01393_ System corrupted: Matter fused (-5). 01413_ G%